[Event "Titled Tuesday Blitz September 21 2021"]
[White "Sydoryka, Vladyslav"]
[Black "Sjugirov, Sanan"]
[WhiteFideId "14145928"]
[BlackFideId "4189302"]
[WhiteElo "2209"]
[BlackElo "2654"]
[Result "0-1"]
[Round "02"]
[TimeControl "180+1"]
[Date "2021.09.21"]
[WhiteClock "0:00:01"]
[BlackClock "0:00:07"]

1. c4 {[%clk 0:03:00]}  e5 {[%clk 0:02:59]} 2. g3 {[%clk 0:03:01]}  Nc6 {[%clk 0:02:58]} 3. Bg2 {[%clk 0:03:00]}  g6 {[%clk 0:02:59]} 4. Nc3 {[%clk 0:03:00]}  Bg7 {[%clk 0:02:59]} 5. Nf3 {[%clk 0:03:01]}  d6 {[%clk 0:02:58]} 6. O-O {[%clk 0:03:01]}  Nf6 {[%clk 0:02:57]} 7. Rb1 {[%clk 0:03:00]}  a5 {[%clk 0:02:56]} 8. a3 {[%clk 0:03:00]}  O-O {[%clk 0:02:56]} 9. b4 {[%clk 0:02:59]}  axb4 {[%clk 0:02:54]} 10. axb4 {[%clk 0:03:00]}  Re8 {[%clk 0:02:45]} 11. b5 {[%clk 0:02:59]}  Nd4 {[%clk 0:02:44]} 12. d3 {[%clk 0:02:48]}  Bg4 {[%clk 0:02:12]} 13. e3 {[%clk 0:02:21]}  Nxf3+ {[%clk 0:01:36]} 14. Bxf3 {[%clk 0:02:22]}  Bxf3 {[%clk 0:01:37]} 15. Qxf3 {[%clk 0:02:23]}  Qc8 {[%clk 0:01:37]} 16. Nd5 {[%clk 0:02:01]}  Nxd5 {[%clk 0:01:35]} 17. cxd5 {[%clk 0:02:02]}  b6 {[%clk 0:01:25]} 18. e4 {[%clk 0:01:52]}  Qd7 {[%clk 0:01:24]} 19. Be3 {[%clk 0:01:33]}  Ra3 {[%clk 0:01:13]} 20. Qe2 {[%clk 0:01:31]}  f5 {[%clk 0:01:04]} 21. Rfc1 {[%clk 0:01:22]}  Rf8 {[%clk 0:01:04]} 22. f3 {[%clk 0:01:20]}  h5 {[%clk 0:00:56]} 23. Rc6 {[%clk 0:01:11]}  h4 {[%clk 0:00:47]} 24. Bg5 {[%clk 0:00:40]}  hxg3 {[%clk 0:00:45]} 25. hxg3 {[%clk 0:00:41]}  fxe4 {[%clk 0:00:43]} 26. fxe4 {[%clk 0:00:38]}  Qh3 {[%clk 0:00:38]} 27. Rd1 {[%clk 0:00:21]}  Qxg3+ {[%clk 0:00:24]} 28. Qg2 {[%clk 0:00:21]}  Rxd3 {[%clk 0:00:24]} 29. Rxd3 {[%clk 0:00:18]}  Qxd3 {[%clk 0:00:25]} 30. Rxc7 {[%clk 0:00:18]}  Qd4+ {[%clk 0:00:17]} 31. Kh1 {[%clk 0:00:16]}  Qd1+ {[%clk 0:00:16]} 32. Kh2 {[%clk 0:00:16]}  Qe1 {[%clk 0:00:11]} 33. Rc2 {[%clk 0:00:07]}  Qd1 {[%clk 0:00:11]} 34. Qe2 {[%clk 0:00:04]}  Qd4 {[%clk 0:00:09]} 35. Kg2 {[%clk 0:00:03]}  Qa1 {[%clk 0:00:09]} 36. Be3 {[%clk 0:00:03]}  Qa4 {[%clk 0:00:08]} 37. Bxb6 {[%clk 0:00:01]}  Qb3 {[%clk 0:00:04]} 38. Bf2 {[%clk 0:00:01]}  Bh6 {[%clk 0:00:02]} 39. Rb2 {[%clk 0:00:02]}  Qc3 {[%clk 0:00:02]} 40. b6 {[%clk 0:00:02]}  Bc1 {[%clk 0:00:02]} 41. Rc2 {[%clk 0:00:02]}  Qa3 {[%clk 0:00:03]} 42. b7 {[%clk 0:00:02]}  Qb3 {[%clk 0:00:03]} 43. Rxc1 {[%clk 0:00:02]}  Qxb7 {[%clk 0:00:04]} 44. Rg1 {[%clk 0:00:02]}  Qf7 {[%clk 0:00:04]} 45. Qg4 {[%clk 0:00:03]}  Qxf2+ {[%clk 0:00:04]} 46. Kh1 {[%clk 0:00:02]}  Qf3+ {[%clk 0:00:03]} 47. Qxf3 {[%clk 0:00:02]}  Rxf3 {[%clk 0:00:04]} 48. Rxg6+ {[%clk 0:00:03]}  Kf7 {[%clk 0:00:05]} 49. Rxd6 {[%clk 0:00:03]}  Rf4 {[%clk 0:00:05]} 50. Ra6 {[%clk 0:00:01]}  Rxe4 {[%clk 0:00:06]} 51. Kg2 {[%clk 0:00:02]}  Rd4 {[%clk 0:00:06]} 52. d6 {[%clk 0:00:02]}  Ke6 {[%clk 0:00:06]} 53. Kf3 {[%clk 0:00:03]}  Kf5 {[%clk 0:00:05]} 54. Ke3 {[%clk 0:00:02]}  Rd5 {[%clk 0:00:05]} 55. Kf3 {[%clk 0:00:02]}  Rd3+ {[%clk 0:00:05]} 56. Ke2 {[%clk 0:00:02]}  e4 {[%clk 0:00:06]} 57. Ra5+ {[%clk 0:00:01]}  Kf4 {[%clk 0:00:06]} 58. Ra4 {[%clk 0:00:02]}  Rxd6 {[%clk 0:00:06]} 59. Ra2 {[%clk 0:00:02]}  Rh6 {[%clk 0:00:06]} 60. Ra3 {[%clk 0:00:02]}  Rh2+ {[%clk 0:00:06]} 61. Ke1 {[%clk 0:00:02]}  Rg2 {[%clk 0:00:07]} 62. Rb3 {[%clk 0:00:02]}  Rc2 {[%clk 0:00:07]} 63. Ra3 {[%clk 0:00:02]}  Rb2 {[%clk 0:00:06]} 64. Rh3 {[%clk 0:00:02]}  Rb1+ {[%clk 0:00:07]} 65. Ke2 {[%clk 0:00:02]}  Rg1 {[%clk 0:00:07]} 66. Ra3 {[%clk 0:00:01]}  Rg2+ {[%clk 0:00:07]} 0-1


[Site "https://www.chess.com"]

[Event "Titled Tuesday Blitz September 21 2021"]
[White "Szpar, Milosz"]
[Black "Akshat, Khamparia"]
[WhiteFideId "1184989"]
[BlackFideId "5016541"]
[WhiteElo "2282"]
[BlackElo "2237"]
[Result "1-0"]
[Round "02"]
[TimeControl "180+1"]
[Date "2021.09.21"]
[WhiteClock "0:00:19"]
[BlackClock "0:00:03"]

1. e4 {[%clk 0:03:00]}  c5 {[%clk 0:02:59]} 2. Nf3 {[%clk 0:03:00]}  d6 {[%clk 0:02:58]} 3. d4 {[%clk 0:02:59]}  cxd4 {[%clk 0:02:58]} 4. Qxd4 {[%clk 0:02:54]}  Nc6 {[%clk 0:02:56]} 5. Bb5 {[%clk 0:02:54]}  Qd7 {[%clk 0:02:56]} 6. Qd3 {[%clk 0:02:40]}  a6 {[%clk 0:02:55]} 7. Ba4 {[%clk 0:02:31]}  b5 {[%clk 0:02:50]} 8. Bb3 {[%clk 0:02:31]}  g6 {[%clk 0:02:44]} 9. O-O {[%clk 0:02:24]}  Bg7 {[%clk 0:02:44]} 10. c4 {[%clk 0:02:14]}  Nf6 {[%clk 0:02:39]} 11. Nc3 {[%clk 0:02:04]}  bxc4 {[%clk 0:02:24]} 12. Qxc4 {[%clk 0:01:52]}  O-O {[%clk 0:02:22]} 13. Ba4 {[%clk 0:01:52]}  Bb7 {[%clk 0:02:20]} 14. Nd5 {[%clk 0:01:52]}  Nxd5 {[%clk 0:01:12]} 15. exd5 {[%clk 0:01:51]}  Na5 {[%clk 0:01:11]} 16. Qb4 {[%clk 0:01:47]}  Qc7 {[%clk 0:01:09]} 17. Bd2 {[%clk 0:01:25]}  Nc4 {[%clk 0:01:08]} 18. Rac1 {[%clk 0:01:25]}  Bxd5 {[%clk 0:01:05]} 19. b3 {[%clk 0:01:22]}  Rfb8 {[%clk 0:00:59]} 20. Rxc4 {[%clk 0:01:22]}  Qd8 {[%clk 0:00:43]} 21. Qa3 {[%clk 0:01:16]}  Bxf3 {[%clk 0:00:35]} 22. gxf3 {[%clk 0:01:15]}  e6 {[%clk 0:00:32]} 23. Rc6 {[%clk 0:01:12]}  d5 {[%clk 0:00:30]} 24. Qd6 {[%clk 0:01:11]}  Qh4 {[%clk 0:00:27]} 25. Qf4 {[%clk 0:01:10]}  Qh5 {[%clk 0:00:25]} 26. Rc7 {[%clk 0:01:07]}  Rf8 {[%clk 0:00:25]} 27. Re1 {[%clk 0:00:53]}  Rac8 {[%clk 0:00:19]} 28. Rb7 {[%clk 0:00:49]}  Rc2 {[%clk 0:00:18]} 29. Bb4 {[%clk 0:00:47]}  Bh6 {[%clk 0:00:12]} 30. Qg3 {[%clk 0:00:29]}  Rfc8 {[%clk 0:00:08]} 31. Rb8 {[%clk 0:00:29]}  Qf5 {[%clk 0:00:06]} 32. Bd7 {[%clk 0:00:27]}  Bf4 {[%clk 0:00:03]} 33. Rxc8+ {[%clk 0:00:21]}  Rxc8 {[%clk 0:00:03]} 34. Qh4 {[%clk 0:00:19]} 1-0


[Site "https://www.chess.com"]

[Event "Titled Tuesday Blitz September 21 2021"]
[White "Trent, Lawrence"]
[Black "Kovacs, Klara"]
[WhiteFideId "408638"]
[BlackFideId "733210"]
[WhiteElo "2474"]
[BlackElo "2137"]
[Result "0-1"]
[Round "02"]
[TimeControl "180+1"]
[Date "2021.09.21"]
[WhiteClock "0:00:29"]
[BlackClock "0:00:09"]

1. d4 {[%clk 0:03:00]}  Nf6 {[%clk 0:02:58]} 2. Bg5 {[%clk 0:03:01]}  c5 {[%clk 0:02:56]} 3. d5 {[%clk 0:03:01]}  d6 {[%clk 0:02:55]} 4. Nc3 {[%clk 0:02:53]}  g6 {[%clk 0:02:53]} 5. Qd2 {[%clk 0:02:52]}  Bg7 {[%clk 0:02:52]} 6. e4 {[%clk 0:02:53]}  h6 {[%clk 0:02:51]} 7. Bf4 {[%clk 0:02:51]}  a6 {[%clk 0:02:46]} 8. a4 {[%clk 0:02:50]}  Nbd7 {[%clk 0:02:44]} 9. f3 {[%clk 0:02:40]}  b6 {[%clk 0:02:43]} 10. g4 {[%clk 0:02:38]}  g5 {[%clk 0:02:27]} 11. Be3 {[%clk 0:02:36]}  Nf8 {[%clk 0:02:27]} 12. h4 {[%clk 0:02:36]}  gxh4 {[%clk 0:02:21]} 13. Rxh4 {[%clk 0:02:34]}  Ng6 {[%clk 0:02:20]} 14. Rh2 {[%clk 0:02:34]}  h5 {[%clk 0:02:20]} 15. g5 {[%clk 0:02:22]}  Nd7 {[%clk 0:02:19]} 16. f4 {[%clk 0:02:16]}  Bb7 {[%clk 0:02:18]} 17. Bh3 {[%clk 0:02:04]}  Qc7 {[%clk 0:02:16]} 18. Nf3 {[%clk 0:01:59]}  O-O-O {[%clk 0:02:13]} 19. Qf2 {[%clk 0:01:48]}  Kb8 {[%clk 0:01:59]} 20. Nd2 {[%clk 0:01:48]}  Rde8 {[%clk 0:01:49]} 21. Nc4 {[%clk 0:01:46]}  e6 {[%clk 0:01:47]} 22. dxe6 {[%clk 0:01:43]}  fxe6 {[%clk 0:01:48]} 23. Qd2 {[%clk 0:01:40]}  d5 {[%clk 0:01:38]} 24. exd5 {[%clk 0:01:37]}  Bxc3 {[%clk 0:01:37]} 25. bxc3 {[%clk 0:01:28]}  exd5 {[%clk 0:01:36]} 26. Bxd7 {[%clk 0:01:25]}  Qxd7 {[%clk 0:01:13]} 27. Nxb6 {[%clk 0:01:25]}  Qe6 {[%clk 0:01:10]} 28. Re2 {[%clk 0:01:18]}  Qxb6 {[%clk 0:01:09]} 29. a5 {[%clk 0:01:19]}  Qc6 {[%clk 0:01:06]} 30. f5 {[%clk 0:01:19]}  Nh4 {[%clk 0:00:58]} 31. Qd3 {[%clk 0:01:06]}  c4 {[%clk 0:00:56]} 32. Bf4+ {[%clk 0:01:05]}  Ka8 {[%clk 0:00:54]} 33. Qh3 {[%clk 0:01:04]}  Rxe2+ {[%clk 0:00:51]} 34. Kxe2 {[%clk 0:01:05]}  Re8+ {[%clk 0:00:50]} 35. Kd2 {[%clk 0:01:05]}  d4 {[%clk 0:00:36]} 36. Qxh4 {[%clk 0:00:54]}  Qg2+ {[%clk 0:00:36]} 37. Kc1 {[%clk 0:00:55]}  dxc3 {[%clk 0:00:28]} 38. Kb1 {[%clk 0:00:55]}  Rd8 {[%clk 0:00:19]} 39. Qe1 {[%clk 0:00:44]}  Qf3 {[%clk 0:00:19]} 40. Bc7 {[%clk 0:00:37]}  Rd1+ {[%clk 0:00:18]} 41. Ka2 {[%clk 0:00:36]}  Rxe1 {[%clk 0:00:18]} 42. Rxe1 {[%clk 0:00:37]}  Be4 {[%clk 0:00:16]} 43. f6 {[%clk 0:00:36]}  Kb7 {[%clk 0:00:15]} 44. Bb6 {[%clk 0:00:36]}  Bxc2 {[%clk 0:00:14]} 45. Re7+ {[%clk 0:00:33]}  Kc6 {[%clk 0:00:14]} 46. f7 {[%clk 0:00:30]}  Bg6 {[%clk 0:00:09]} 47. Re6+ {[%clk 0:00:31]}  Kb5 {[%clk 0:00:08]} 48. Rxg6 {[%clk 0:00:29]}  Qe2+ {[%clk 0:00:08]} 49. Kb1 {[%clk 0:00:29]}  Qb2# {[%clk 0:00:09]} 0-1


[Site "https://www.chess.com"]

[Event "Titled Tuesday Blitz September 21 2021"]
[White "Tsaruk, Maksim"]
[Black "Perez Torres, Nabi Isaias"]
[WhiteFideId "13511173"]
[BlackFideId "5120373"]
[WhiteElo "2195"]
[BlackElo "1755"]
[Result "1-0"]
[Round "02"]
[TimeControl "180+1"]
[Date "2021.09.21"]
[WhiteClock "0:01:14"]
[BlackClock "0:00:01"]

1. e4 {[%clk 0:02:28]}  c5 {[%clk 0:02:59]} 2. Nf3 {[%clk 0:02:28]}  d6 {[%clk 0:02:59]} 3. d4 {[%clk 0:02:29]}  cxd4 {[%clk 0:03:00]} 4. Nxd4 {[%clk 0:02:29]}  Nf6 {[%clk 0:03:00]} 5. Nc3 {[%clk 0:02:29]}  g6 {[%clk 0:03:01]} 6. Be3 {[%clk 0:02:29]}  Bg7 {[%clk 0:03:02]} 7. f3 {[%clk 0:02:29]}  O-O {[%clk 0:03:02]} 8. Qd2 {[%clk 0:02:30]}  Nc6 {[%clk 0:03:02]} 9. g4 {[%clk 0:02:31]}  Be6 {[%clk 0:03:00]} 10. Nxe6 {[%clk 0:02:23]}  fxe6 {[%clk 0:03:00]} 11. O-O-O {[%clk 0:02:24]}  Ne5 {[%clk 0:02:59]} 12. Be2 {[%clk 0:02:24]}  Rc8 {[%clk 0:02:58]} 13. Kb1 {[%clk 0:02:24]}  Nfd7 {[%clk 0:02:43]} 14. f4 {[%clk 0:02:23]}  Nc4 {[%clk 0:02:41]} 15. Bxc4 {[%clk 0:02:23]}  Rxc4 {[%clk 0:02:42]} 16. Qd3 {[%clk 0:02:16]}  b5 {[%clk 0:02:38]} 17. Nxb5 {[%clk 0:02:09]}  Rc6 {[%clk 0:02:14]} 18. Nxa7 {[%clk 0:01:56]}  Rc7 {[%clk 0:02:14]} 19. Nb5 {[%clk 0:01:54]}  Rb7 {[%clk 0:02:13]} 20. a4 {[%clk 0:01:54]}  Qa8 {[%clk 0:02:13]} 21. b3 {[%clk 0:01:53]}  Rfb8 {[%clk 0:02:10]} 22. Bd4 {[%clk 0:01:51]}  Nc5 {[%clk 0:02:07]} 23. Bxc5 {[%clk 0:01:47]}  Rxb5 {[%clk 0:01:53]} 24. Bd4 {[%clk 0:01:46]}  Qxa4 {[%clk 0:01:40]} 25. Bxg7 {[%clk 0:01:40]}  Kxg7 {[%clk 0:01:06]} 26. Qd4+ {[%clk 0:01:28]}  Qxd4 {[%clk 0:01:06]} 27. Rxd4 {[%clk 0:01:29]}  Rf8 {[%clk 0:01:02]} 28. e5 {[%clk 0:01:27]}  d5 {[%clk 0:00:46]} 29. g5 {[%clk 0:01:22]}  h6 {[%clk 0:00:16]} 30. h4 {[%clk 0:01:23]}  hxg5 {[%clk 0:00:16]} 31. hxg5 {[%clk 0:01:24]}  Rc8 {[%clk 0:00:15]} 32. Kb2 {[%clk 0:01:24]}  Rbc5 {[%clk 0:00:15]} 33. Rh2 {[%clk 0:01:24]}  Rc3 {[%clk 0:00:15]} 34. Rhd2 {[%clk 0:01:23]}  Rf3 {[%clk 0:00:15]} 35. b4 {[%clk 0:01:21]}  Rf8 {[%clk 0:00:15]} 36. c4 {[%clk 0:01:14]}  dxc4 {[%clk 0:00:12]} 37. Rxc4 {[%clk 0:01:15]}  R3xf4 {[%clk 0:00:13]} 38. Rxf4 {[%clk 0:01:15]}  Rxf4 {[%clk 0:00:13]} 39. Kb3 {[%clk 0:01:16]}  Re4 {[%clk 0:00:14]} 40. b5 {[%clk 0:01:16]}  Rxe5 {[%clk 0:00:14]} 41. Kb4 {[%clk 0:01:16]}  Rxg5 {[%clk 0:00:13]} 42. b6 {[%clk 0:01:17]}  Rg1 {[%clk 0:00:10]} 43. Rd3 {[%clk 0:01:16]}  Rh1 {[%clk 0:00:08]} 44. b7 {[%clk 0:01:13]}  Rh8 {[%clk 0:00:04]} 45. Kc5 {[%clk 0:01:14]}  Rb8 {[%clk 0:00:04]} 46. Kc6 {[%clk 0:01:14]}  Kf6 {[%clk 0:00:04]} 47. Kc7 {[%clk 0:01:14]}  Rxb7+ {[%clk 0:00:04]} 48. Kxb7 {[%clk 0:01:15]}  g5 {[%clk 0:00:03]} 49. Kc6 {[%clk 0:01:16]}  Kf5 {[%clk 0:00:03]} 50. Rf3+ {[%clk 0:01:12]}  Ke4 {[%clk 0:00:03]} 51. Rf7 {[%clk 0:01:10]}  g4 {[%clk 0:00:04]} 52. Rxe7 {[%clk 0:01:10]}  g3 {[%clk 0:00:04]} 53. Rxe6+ {[%clk 0:01:11]}  Kf3 {[%clk 0:00:05]} 54. Rf6+ {[%clk 0:01:11]}  Ke2 {[%clk 0:00:04]} 55. Re6+ {[%clk 0:01:11]}  Kf2 {[%clk 0:00:05]} 56. Rf6+ {[%clk 0:01:12]}  Kg1 {[%clk 0:00:05]} 57. Kd5 {[%clk 0:01:12]}  g2 {[%clk 0:00:05]} 58. Ke4 {[%clk 0:01:12]}  Kh2 {[%clk 0:00:01]} 59. Rh6+ {[%clk 0:01:13]}  Kg3 {[%clk 0:00:01]} 60. Rg6+ {[%clk 0:01:14]} 1-0


[Site "https://www.chess.com"]

[Event "Titled Tuesday Blitz September 21 2021"]
[White "Turzo, Attila"]
[Black "Timmermans, Mark"]
[WhiteFideId "704954"]
[BlackFideId "1026399"]
[WhiteElo "2487"]
[BlackElo "2460"]
[Result "0-1"]
[Round "02"]
[TimeControl "180+1"]
[Date "2021.09.21"]
[WhiteClock "0:00:12"]
[BlackClock "0:00:11"]

1. d4 {[%clk 0:03:00]}  Nf6 {[%clk 0:02:59]} 2. c4 {[%clk 0:03:00]}  e6 {[%clk 0:02:59]} 3. Nf3 {[%clk 0:03:00]}  d5 {[%clk 0:02:57]} 4. Nc3 {[%clk 0:02:59]}  dxc4 {[%clk 0:02:57]} 5. e4 {[%clk 0:02:58]}  b5 {[%clk 0:02:57]} 6. e5 {[%clk 0:02:56]}  Nd5 {[%clk 0:02:52]} 7. Nxb5 {[%clk 0:02:56]}  Nb6 {[%clk 0:02:53]} 8. Be2 {[%clk 0:02:49]}  Nc6 {[%clk 0:02:53]} 9. O-O {[%clk 0:02:49]}  Be7 {[%clk 0:02:52]} 10. Be3 {[%clk 0:02:42]}  Ba6 {[%clk 0:02:48]} 11. Nc3 {[%clk 0:02:40]}  Nb4 {[%clk 0:02:48]} 12. b3 {[%clk 0:02:31]}  cxb3 {[%clk 0:02:43]} 13. Bxa6 {[%clk 0:02:26]}  Nxa6 {[%clk 0:02:43]} 14. axb3 {[%clk 0:02:15]}  Nb4 {[%clk 0:02:42]} 15. Ne4 {[%clk 0:02:07]}  h6 {[%clk 0:02:36]} 16. Qd2 {[%clk 0:02:05]}  N4d5 {[%clk 0:02:33]} 17. Ra6 {[%clk 0:01:49]}  Nb4 {[%clk 0:02:13]} 18. Ra5 {[%clk 0:01:43]}  N6d5 {[%clk 0:01:52]} 19. Rfa1 {[%clk 0:01:41]}  Qb8 {[%clk 0:01:45]} 20. Qc1 {[%clk 0:01:28]}  Nxe3 {[%clk 0:01:06]} 21. fxe3 {[%clk 0:01:25]}  O-O {[%clk 0:01:05]} 22. Nc5 {[%clk 0:01:21]}  Rc8 {[%clk 0:00:47]} 23. Qc4 {[%clk 0:01:17]}  Bxc5 {[%clk 0:00:31]} 24. Rxc5 {[%clk 0:01:18]}  c6 {[%clk 0:00:31]} 25. Nd2 {[%clk 0:01:04]}  Rc7 {[%clk 0:00:29]} 26. Ne4 {[%clk 0:01:04]}  Nd5 {[%clk 0:00:27]} 27. Kf2 {[%clk 0:00:58]}  Rb7 {[%clk 0:00:25]} 28. Ra3 {[%clk 0:00:56]}  f5 {[%clk 0:00:17]} 29. exf6 {[%clk 0:00:53]}  Qxh2 {[%clk 0:00:18]} 30. Rxc6 {[%clk 0:00:38]}  Qh4+ {[%clk 0:00:17]} 31. Ng3 {[%clk 0:00:38]}  Rf7 {[%clk 0:00:15]} 32. Rxe6 {[%clk 0:00:36]}  Nxf6 {[%clk 0:00:13]} 33. d5 {[%clk 0:00:27]}  Ng4+ {[%clk 0:00:11]} 34. Ke2 {[%clk 0:00:20]}  Qxg3 {[%clk 0:00:12]} 35. d6 {[%clk 0:00:16]}  Qxg2+ {[%clk 0:00:12]} 36. Kd3 {[%clk 0:00:15]}  Nf2+ {[%clk 0:00:11]} 37. Kc3 {[%clk 0:00:13]}  Nd1+ {[%clk 0:00:11]} 38. Kb4 {[%clk 0:00:13]}  Qd2+ {[%clk 0:00:10]} 39. Ka4 {[%clk 0:00:13]}  Nb2+ {[%clk 0:00:10]} 40. Kb5 {[%clk 0:00:12]}  Nxc4 {[%clk 0:00:11]} 0-1


[Site "https://www.chess.com"]

[Event "Titled Tuesday Blitz September 21 2021"]
[White "ValeriyGrinev"]
[Black "Abdrlauf, Elham"]
[BlackFideId "1533533"]
[WhiteElo "2587"]
[BlackElo "2347"]
[Result "0-1"]
[Round "02"]
[TimeControl "180+1"]
[Date "2021.09.21"]
[WhiteClock "0:00:04"]
[BlackClock "0:00:04"]

1. d4 {[%clk 0:02:57]}  Nf6 {[%clk 0:02:59]} 2. c4 {[%clk 0:02:56]}  e6 {[%clk 0:03:00]} 3. Nc3 {[%clk 0:02:56]}  d5 {[%clk 0:03:00]} 4. cxd5 {[%clk 0:02:55]}  exd5 {[%clk 0:03:01]} 5. Bg5 {[%clk 0:02:55]}  c6 {[%clk 0:03:02]} 6. e3 {[%clk 0:02:55]}  Bd6 {[%clk 0:03:02]} 7. Bd3 {[%clk 0:02:50]}  O-O {[%clk 0:03:02]} 8. Qc2 {[%clk 0:02:49]}  h6 {[%clk 0:03:01]} 9. Bh4 {[%clk 0:02:49]}  Re8 {[%clk 0:03:02]} 10. Nge2 {[%clk 0:02:48]}  a5 {[%clk 0:03:02]} 11. Bg3 {[%clk 0:02:37]}  Na6 {[%clk 0:03:01]} 12. Bxd6 {[%clk 0:02:32]}  Qxd6 {[%clk 0:03:01]} 13. a3 {[%clk 0:02:33]}  Nc7 {[%clk 0:03:00]} 14. O-O {[%clk 0:02:30]}  Ne6 {[%clk 0:02:50]} 15. Ng3 {[%clk 0:02:26]}  Ng5 {[%clk 0:02:46]} 16. Rae1 {[%clk 0:02:20]}  Bd7 {[%clk 0:02:28]} 17. f3 {[%clk 0:02:20]}  Rac8 {[%clk 0:02:24]} 18. Qf2 {[%clk 0:02:18]}  c5 {[%clk 0:01:50]} 19. Nf5 {[%clk 0:02:16]}  Bxf5 {[%clk 0:01:45]} 20. Bxf5 {[%clk 0:02:17]}  Rcd8 {[%clk 0:01:43]} 21. Rd1 {[%clk 0:02:05]}  Ne6 {[%clk 0:01:32]} 22. Qg3 {[%clk 0:01:52]}  Qxg3 {[%clk 0:01:30]} 23. hxg3 {[%clk 0:01:52]}  cxd4 {[%clk 0:01:31]} 24. exd4 {[%clk 0:01:52]}  g6 {[%clk 0:01:28]} 25. Bb1 {[%clk 0:01:45]}  Rc8 {[%clk 0:01:27]} 26. Ba2 {[%clk 0:01:42]}  Red8 {[%clk 0:01:28]} 27. Kf2 {[%clk 0:01:42]}  b5 {[%clk 0:01:26]} 28. Rd2 {[%clk 0:01:40]}  b4 {[%clk 0:01:26]} 29. axb4 {[%clk 0:01:38]}  axb4 {[%clk 0:01:27]} 30. Nd1 {[%clk 0:01:37]}  Rb8 {[%clk 0:01:15]} 31. Bb3 {[%clk 0:01:37]}  Nc7 {[%clk 0:01:07]} 32. Ne3 {[%clk 0:01:36]}  Nb5 {[%clk 0:01:08]} 33. Rc1 {[%clk 0:01:34]}  Rd7 {[%clk 0:00:49]} 34. Rc5 {[%clk 0:01:32]}  Nc7 {[%clk 0:00:49]} 35. Rc6 {[%clk 0:01:06]}  Kg7 {[%clk 0:00:45]} 36. Ke2 {[%clk 0:01:06]}  Ne6 {[%clk 0:00:39]} 37. Kd3 {[%clk 0:01:06]}  Ra8 {[%clk 0:00:36]} 38. Rb6 {[%clk 0:01:03]}  Ra1 {[%clk 0:00:32]} 39. Rxb4 {[%clk 0:01:02]}  Ng5 {[%clk 0:00:29]} 40. Rd1 {[%clk 0:00:55]}  Raa7 {[%clk 0:00:28]} 41. Rc1 {[%clk 0:00:53]}  Rab7 {[%clk 0:00:21]} 42. Rxb7 {[%clk 0:00:52]}  Rxb7 {[%clk 0:00:22]} 43. Rc3 {[%clk 0:00:52]}  Ne6 {[%clk 0:00:18]} 44. Nc2 {[%clk 0:00:37]}  h5 {[%clk 0:00:16]} 45. Kd2 {[%clk 0:00:34]}  Rb8 {[%clk 0:00:16]} 46. Kc1 {[%clk 0:00:34]}  Rh8 {[%clk 0:00:15]} 47. Rd3 {[%clk 0:00:30]}  h4 {[%clk 0:00:15]} 48. gxh4 {[%clk 0:00:30]}  Rxh4 {[%clk 0:00:16]} 49. g4 {[%clk 0:00:28]}  Rh3 {[%clk 0:00:14]} 50. Kd2 {[%clk 0:00:29]}  Rh2+ {[%clk 0:00:14]} 51. Kc3 {[%clk 0:00:29]}  Nf4 {[%clk 0:00:11]} 52. Re3 {[%clk 0:00:29]}  Rh3 {[%clk 0:00:11]} 53. Ba2 {[%clk 0:00:21]}  Ng2 {[%clk 0:00:11]} 54. Rd3 {[%clk 0:00:20]}  Nf4 {[%clk 0:00:12]} 55. Re3 {[%clk 0:00:21]}  Nh7 {[%clk 0:00:07]} 56. b4 {[%clk 0:00:20]}  Ng2 {[%clk 0:00:07]} 57. Rd3 {[%clk 0:00:19]}  Nf4 {[%clk 0:00:08]} 58. Re3 {[%clk 0:00:19]}  Ng2 {[%clk 0:00:08]} 59. Re2 {[%clk 0:00:19]}  Rxf3+ {[%clk 0:00:08]} 60. Kb2 {[%clk 0:00:20]}  Nf4 {[%clk 0:00:08]} 61. Rd2 {[%clk 0:00:20]}  Nd3+ {[%clk 0:00:05]} 62. Ka3 {[%clk 0:00:18]}  Nc5+ {[%clk 0:00:02]} 63. Kb2 {[%clk 0:00:18]}  Nd3+ {[%clk 0:00:03]} 64. Ka3 {[%clk 0:00:11]}  Nc5+ {[%clk 0:00:03]} 65. Kb2 {[%clk 0:00:12]}  Na4+ {[%clk 0:00:03]} 66. Ka1 {[%clk 0:00:07]}  Nf6 {[%clk 0:00:04]} 67. Bb1 {[%clk 0:00:06]}  Ne4 {[%clk 0:00:04]} 68. Re2 {[%clk 0:00:05]}  Rb3 {[%clk 0:00:05]} 69. Re1 {[%clk 0:00:06]}  Nec3 {[%clk 0:00:04]} 70. Ba2 {[%clk 0:00:05]}  Nxa2 {[%clk 0:00:04]} 71. Kxa2 {[%clk 0:00:05]}  Rc3 {[%clk 0:00:02]} 72. Kb1 {[%clk 0:00:05]}  Rb3+ {[%clk 0:00:02]} 73. Ka2 {[%clk 0:00:05]}  Rc3 {[%clk 0:00:03]} 74. Kb1 {[%clk 0:00:06]}  f5 {[%clk 0:00:03]} 75. gxf5 {[%clk 0:00:05]}  gxf5 {[%clk 0:00:04]} 76. Re7+ {[%clk 0:00:05]}  Kf6 {[%clk 0:00:04]} 77. Ra7 {[%clk 0:00:06]}  Rb3+ {[%clk 0:00:03]} 78. Ka2 {[%clk 0:00:06]}  Rb2+ {[%clk 0:00:03]} 79. Ka3 {[%clk 0:00:06]}  Rxc2 {[%clk 0:00:04]} 80. Rxa4 {[%clk 0:00:06]}  f4 {[%clk 0:00:04]} 81. Ra8 {[%clk 0:00:07]}  Rc7 {[%clk 0:00:03]} 82. Rf8+ {[%clk 0:00:06]}  Rf7 {[%clk 0:00:03]} 83. Rh8 {[%clk 0:00:04]}  f3 {[%clk 0:00:03]} 84. Rh2 {[%clk 0:00:04]}  Kf5 {[%clk 0:00:02]} 85. b5 {[%clk 0:00:03]}  Ke4 {[%clk 0:00:03]} 86. Kb4 {[%clk 0:00:03]}  f2 {[%clk 0:00:03]} 87. Rh4+ {[%clk 0:00:02]}  Ke3 {[%clk 0:00:02]} 88. Rh1 {[%clk 0:00:02]}  f1=Q {[%clk 0:00:03]} 89. Rxf1 {[%clk 0:00:03]}  Rxf1 {[%clk 0:00:04]} 90. b6 {[%clk 0:00:03]}  Rb1+ {[%clk 0:00:03]} 91. Kc5 {[%clk 0:00:04]}  Rxb6 {[%clk 0:00:04]} 92. Kxb6 {[%clk 0:00:04]}  Kxd4 {[%clk 0:00:04]} 0-1


[Site "https://www.chess.com"]

[Event "Titled Tuesday Blitz September 21 2021"]
[White "Visakh N R"]
[Black "Manukyan, Sargis A."]
[WhiteFideId "25012223"]
[BlackFideId "13303970"]
[WhiteElo "2454"]
[BlackElo "2187"]
[Result "1-0"]
[Round "02"]
[TimeControl "180+1"]
[Date "2021.09.21"]
[WhiteClock "0:00:15"]
[BlackClock "0:00:09"]

1. d4 {[%clk 0:03:00]}  e6 {[%clk 0:02:56]} 2. c4 {[%clk 0:02:53]}  c5 {[%clk 0:02:53]} 3. d5 {[%clk 0:02:53]}  exd5 {[%clk 0:02:51]} 4. cxd5 {[%clk 0:02:54]}  d6 {[%clk 0:02:51]} 5. Nc3 {[%clk 0:02:54]}  a6 {[%clk 0:02:52]} 6. a4 {[%clk 0:02:53]}  Ne7 {[%clk 0:02:51]} 7. Nf3 {[%clk 0:02:53]}  Ng6 {[%clk 0:02:50]} 8. h4 {[%clk 0:02:49]}  Nd7 {[%clk 0:02:48]} 9. h5 {[%clk 0:02:47]}  Nge5 {[%clk 0:02:48]} 10. e4 {[%clk 0:02:44]}  Nxf3+ {[%clk 0:02:28]} 11. Qxf3 {[%clk 0:02:45]}  Be7 {[%clk 0:02:20]} 12. Qg3 {[%clk 0:02:43]}  Bf6 {[%clk 0:02:12]} 13. Bf4 {[%clk 0:02:39]}  Ne5 {[%clk 0:02:05]} 14. Be2 {[%clk 0:02:36]}  h6 {[%clk 0:01:59]} 15. O-O {[%clk 0:02:34]}  Qe7 {[%clk 0:01:52]} 16. Be3 {[%clk 0:02:32]}  O-O {[%clk 0:01:32]} 17. Bxh6 {[%clk 0:02:25]}  Rb8 {[%clk 0:01:09]} 18. f4 {[%clk 0:02:22]}  Nd7 {[%clk 0:01:03]} 19. e5 {[%clk 0:02:03]}  dxe5 {[%clk 0:01:02]} 20. Ne4 {[%clk 0:02:02]}  Kh7 {[%clk 0:00:47]} 21. Nxf6+ {[%clk 0:01:19]}  Qxf6 {[%clk 0:00:46]} 22. Bg5 {[%clk 0:01:19]}  Qf5 {[%clk 0:00:23]} 23. Rae1 {[%clk 0:01:01]}  e4 {[%clk 0:00:19]} 24. Bg4 {[%clk 0:00:16]}  Qxd5 {[%clk 0:00:17]} 25. Rd1 {[%clk 0:00:16]}  Qc6 {[%clk 0:00:15]} 26. Bf5+ {[%clk 0:00:15]}  Kh8 {[%clk 0:00:14]} 27. Be7 {[%clk 0:00:15]}  Rg8 {[%clk 0:00:14]} 28. Rd6 {[%clk 0:00:15]}  Qc7 {[%clk 0:00:13]} 29. Qg5 {[%clk 0:00:15]}  Nf8 {[%clk 0:00:12]} 30. Rh6+ {[%clk 0:00:14]}  gxh6 {[%clk 0:00:09]} 31. Qxh6+ {[%clk 0:00:14]}  Nh7 {[%clk 0:00:10]} 32. Bf6+ {[%clk 0:00:14]}  Rg7 {[%clk 0:00:09]} 33. Qxh7# {[%clk 0:00:15]} 1-0


[Site "https://www.chess.com"]